bitfinex-derivatives/quotes_SOLF0:USTF0_20250202
["timestamp","ask_amount","ask_price","bid_price","bid_amount"]
[1738468565277,15.9533027,207.93,207.89,447.6976154]
[1738468565479,4.8111,207.91,207.9,0.0317016]
[1738468565680,15.9533027,207.93,207.9,0.0317016]
[1738468565880,0.03680955,207.94,207.9,0.0317016]
[1738468566681,3.76,208.04,207.9,3.1977016]
[1738468567187,22.7733027,208.14,207.91,15.9533027]
[1738468567484,15.9533027,208.1,207.91,19.5596027]
[1738468567681,0.03210909,208.05,208.0,0.0345537]
[1738468568183,4.8085,208.02,208.0,0.0345537]
[1738468568581,8.6285,208.02,208.0,0.0345537]
[1738468568784,4.8095,207.98,207.91,3.6063]
[1738468568980,19.7733027,208.02,207.91,3.6063]
[1738468569180,19.7733027,208.02,207.72,111.1133027]
[1738468569181,19.7733027,208.02,207.84,3.166]
[1738468569384,15.9533027,207.94,207.77,3.8077]
[1738468569585,15.9533027,207.94,207.78,3.0662]
[1738468569779,15.9533027,207.89,207.78,3.0662]
[1738468569985,15.9533027,207.89,207.6,15.9533027]
[1738468569986,15.9533027,207.81,207.64,15.9533027]
[1738468570584,0.03393469,207.75,207.7,0.03571557]
[1738468570789,15.9533027,207.93,207.72,15.9533027]
[1738468571081,19.7733027,207.97,207.82,4.8129]
[1738468571285,19.69458815,207.84,207.76,8.61564757]
[1738468571486,19.69458815,207.84,207.77,3.6391]
[1738468571989,0.03343251,207.83,207.78,0.03695964]
[1738468573285,0.03343251,207.83,207.78,5.964e-05]
[1738468573493,4.8135,207.8,207.78,5.964e-05]
[1738468574689,26.01907024,207.82,207.63,26.01907024]
[1738468575090,3.0085,207.83,207.71,4.8153]
[1738468575292,4.8133,207.81,207.67,26.01907024]
[1738468575488,3.84,207.84,207.6,29.91587024]
[1738468575489,26.01907024,207.82,207.6,29.91587024]
[1738468575791,4.8147,207.75,207.6,29.91587024]
[1738468575993,0.03129344,207.73,207.69,0.03415941]
[1738468576393,4.8145,207.76,207.61,2.9562]
[1738468576588,0.03137089,207.73,207.69,0.03608116]
[1738468577292,0.03137089,207.73,207.7,4.8157]
[1738468577485,0.03137089,207.73,207.69,0.03608116]
[1738468577486,6.54097811,207.85,207.72,26.01907024]
[1738468577686,6.54097811,207.85,207.73,6.7366]
[1738468577885,6.54097811,207.85,207.7,26.01907024]
[1738468578488,4.8133,207.81,207.7,26.01907024]
[1738468578693,0.03677839,207.8,207.75,26.0520876]
[1738468578995,0.03677839,207.8,207.76,6.7366]
[1738468579989,0.03677839,207.8,207.78,4.8138]
[1738468580190,32.56004835,207.94,207.78,4.8138]
[1738468580490,3.86,207.93,207.77,4.8141]
[1738468580795,3.86,207.93,207.76,6.7366]
[1738468581392,0.0354254,207.87,207.82,0.03623814]
[1738468581890,4.8128,207.84,207.82,3.814e-05]
[1738468582298,0.0354254,207.87,207.82,3.814e-05]
[1738468582895,4.8126,207.84,207.82,3.814e-05]
[1738468584797,6.54097811,207.85,207.73,26.01907024]
[1738468585100,6.54097811,207.85,207.74,3.7562]
[1738468585301,6.54097811,207.85,207.74,6.7435]
[1738468585504,6.54097811,207.85,207.74,11.5582]
[1738468585805,4.8131,207.82,207.74,6.7435]
[1738468586099,0.03649783,207.82,207.77,0.03701005]
[1738468586296,0.03649783,207.82,207.71,26.01907024]
[1738468586897,0.03649783,207.82,207.67,26.01907024]
[1738468586898,26.05556807,207.82,207.67,26.01907024]
[1738468587094,4.8151,207.73,207.63,26.01907024]
[1738468587404,3.88,207.78,207.63,26.01907024]
[1738468587603,0.03034932,207.7,207.66,0.03170005]
[1738468589903,4.8163,207.68,207.66,0.03170005]
[1738468590302,0.03034932,207.7,207.66,0.03170005]
[1738468590503,4.8161,207.69,207.66,0.03170005]
[1738468590698,0.03034932,207.7,207.66,0.03170005]
[1738468591204,4.8164,207.68,207.66,0.03170005]
[1738468591605,4.8164,207.68,207.55,26.01907024]
[1738468591807,4.8164,207.68,207.52,2.9176]
[1738468591808,4.8179,207.62,207.56,2.9092]
[1738468592305,4.8173,207.64,207.56,2.9092]
[1738468592498,16.0390935,207.72,207.56,2.9092]
[1738468592904,4.8177,207.62,207.56,2.9092]
[1738468593303,3.1195,207.71,207.56,2.9092]
[1738468593502,0.03699063,207.61,207.56,2.9092]
[1738468593808,0.03442494,207.61,207.56,2.9092]
[1738468594808,4.8182,207.6,207.56,2.9092]
[1738468595103,0.03442494,207.61,207.56,2.9092]
[1738468595505,4.85252494,207.61,207.56,2.9092]
[1738468595709,0.03442494,207.61,207.56,2.9092]
[1738468595913,0.03442494,207.61,207.52,3.6588]
[1738468596907,0.03442494,207.61,207.5,16.0390935]
[1738468597208,0.03442494,207.61,207.54,16.0390935]
[1738468597415,0.03442494,207.61,207.51,3.612]
[1738468597709,4.8183,207.6,207.53,4.8196]
[1738468597913,0.03442494,207.61,207.53,4.8196]
[1738468598310,4.8191,207.56,207.51,3.612]
[1738468598507,19.8790935,207.64,207.51,3.612]
[1738468599006,0.03689305,207.56,207.51,3.612]
[1738468600011,0.03689305,207.56,207.51,8.4322]
[1738468600812,0.03689305,207.56,207.52,4.8199]
[1738468601311,0.03689305,207.56,207.51,3.612]
[1738468601817,4.85599305,207.56,207.51,3.612]
[1738468602012,0.03689305,207.56,207.52,4.8198]
[1738468602207,0.03689305,207.56,207.51,3.612]
[1738468603007,4.85589305,207.56,207.51,8.4321]
[1738468603312,0.03689305,207.56,207.51,3.612]
[1738468604215,0.03689305,207.56,207.53,4.8196]
[1738468604714,0.03689305,207.56,207.51,3.612]
[1738468605415,0.03689305,207.56,207.52,4.8198]
[1738468605610,0.03689305,207.56,207.51,3.612]
[1738468607115,26.23556626,207.66,207.54,16.0390935]
[1738468607516,26.23556626,207.66,207.62,4.8176]
[1738468607720,26.23556626,207.66,207.63,6.6277]
[1738468608215,31.05236626,207.66,207.63,6.6277]
[1738468608416,31.05236626,207.66,207.62,0.03107832]
[1738468608417,26.23556626,207.66,207.62,0.03107832]
[1738468608720,26.23556626,207.66,207.54,16.0390935]
[1738468608721,4.8172,207.64,207.58,4.8185]
[1738468608919,26.26721276,207.66,207.62,0.03219758]
[1738468609112,26.23556626,207.66,207.55,6.6277]
[1738468609318,0.03090261,207.63,207.62,0.0360412]
[1738468609821,41.67032133,207.73,207.62,0.0360412]
[1738468610021,4.8172,207.64,207.62,0.0360412]
[1738468610422,41.67032133,207.73,207.62,0.0360412]
[1738468610921,0.03634923,207.7,207.62,0.0360412]
[1738468611222,16.07544273,207.7,207.62,0.0360412]
[1738468611420,0.03634923,207.7,207.62,0.0360412]
[1738468611614,4.8171,207.65,207.62,0.0360412]
[1738468611821,0.03634923,207.7,207.5,16.0390935]
[1738468612014,16.0390935,207.66,207.5,16.0390935]
[1738468612216,4.8178,207.62,207.54,4.8195]
[1738468612414,16.0390935,207.7,207.5,16.0390935]
[1738468613020,0.03179926,207.62,207.58,0.03672913]
[1738468614320,4.8183,207.59,207.58,0.03672913]
[1738468614925,0.03179926,207.62,207.58,0.03672913]
[1738468615625,4.8183,207.59,207.58,0.03672913]
[1738468617820,0.03179926,207.62,207.58,0.03672913]
[1738468618425,4.8183,207.59,207.58,0.03672913]
[1738468620028,4.818,207.61,207.58,0.03672913]
[1738468620233,0.03179926,207.62,207.58,0.03672913]
[1738468620732,26.23556626,207.66,207.58,16.07582263]
[1738468621029,40.32490174,207.68,207.62,16.0390935]
[1738468621331,78.77835261,207.7,207.66,16.0390935]
[1738468621532,2.489e-05,207.71,207.69,4.816]
[1738468621729,207.95175007,207.84,207.7,16.0390935]
[1738468622127,89.70852999,207.73,207.72,4.8153]
[1738468622330,3.496e-05,207.74,207.7,48.1172805]
[1738468622531,166.97387142,207.9,207.7,48.1172805]
[1738468622734,166.97387142,207.9,207.89,16.0390935]
[1738468623036,159.32967142,207.9,207.89,16.0390935]
[1738468623435,16.0390935,208.01,207.84,16.0390935]
[1738468623640,16.0390935,207.97,207.8,16.0390935]
[1738468623835,0.03644122,207.92,207.87,0.03221017]
[1738468624335,4.8111,207.9,207.89,161.04356928]
[1738468624630,19.8202935,207.93,207.74,47.34988941]
[1738468625031,19.8202935,207.93,207.82,132.53168522]
[1738468625430,16.0390935,207.89,207.85,0.03163275]
[1738468625636,4.8119,207.87,207.85,0.03163275]
[1738468626433,4.8119,207.87,207.85,3.275e-05]
[1738468626740,16.0390935,207.89,207.69,3.7658]
[1738468627036,16.0390935,207.83,207.69,3.7658]
[1738468627341,16.0390935,207.87,207.7,3.1566]
[1738468627831,0.03046901,207.81,207.76,0.03272462]
[1738468628235,16.0390935,207.87,207.7,3.1566]
[1738468628437,0.03474419,207.81,207.76,0.03438895]
[1738468628735,16.0390935,207.83,207.7,3.1566]
[1738468628941,0.03208947,207.81,207.76,0.03227884]
[1738468629237,16.0390935,207.79,207.65,3.0167]
[1738468629739,4.8158,207.71,207.65,3.0167]
[1738468629935,2.9879,207.78,207.65,3.0167]
[1738468630141,16.0390935,207.75,207.61,6.8193]
[1738468630343,4.8154,207.72,207.61,6.8193]
[1738468630537,2.9879,207.78,207.61,6.8193]
[1738468630738,0.03073748,207.7,207.61,6.8193]
[1738468631938,4.84663748,207.7,207.61,6.8193]
[1738468632146,0.03073748,207.7,207.61,6.8193]
[1738468632644,4.8167,207.67,207.61,6.8193]
[1738468633035,4.8162,207.69,207.61,6.8193]
[1738468633240,0.03073748,207.7,207.61,6.8193]
[1738468635342,4.8164,207.68,207.61,6.8193]
[1738468635645,0.03073748,207.7,207.61,6.8193]
[1738468636036,0.03073748,207.7,207.56,16.0390935]
[1738468636236,16.0390935,207.71,207.54,6.6512]
[1738468636443,4.8167,207.66,207.54,6.6512]
[1738468636638,0.03282978,207.65,207.54,6.6512]
[1738468637145,0.03282978,207.65,207.53,3.0751]
[1738468637438,16.0390935,207.63,207.49,2.9622]
[1738468638046,4.8192,207.56,207.49,2.9622]
[1738468638236,0.03444435,207.58,207.49,2.9622]
[1738468638850,4.8193,207.55,207.49,2.9622]
[1738468639239,0.03444435,207.58,207.49,2.9622]
[1738468639648,0.03444435,207.58,207.43,6.6501]
[1738468640046,16.0390935,207.59,207.43,6.6501]
[1738468640242,0.03204626,207.53,207.43,6.6501]
[1738468640547,4.8207,207.49,207.43,6.6501]
[1738468640939,16.0390935,207.59,207.43,6.6501]
[1738468641140,0.03229139,207.48,207.43,6.6501]
[1738468641343,16.0390935,207.51,207.33,3.6576]
[1738468641541,4.822,207.43,207.33,9.5914]
[1738468642049,4.8236,207.37,207.29,232.71688522]
[1738468642249,16.0390935,207.41,207.29,227.89168522]
[1738468642547,0.03186204,207.36,207.29,132.53168522]
[1738468642751,4.8244,207.33,207.29,132.53168522]
[1738468642948,16.0390935,207.37,207.29,132.53168522]
[1738468643149,16.0390935,207.37,207.21,3.6576]
[1738468643150,4.8254,207.29,207.21,3.6576]
[1738468643449,16.0390935,207.33,207.19,4.8276]
[1738468643647,16.0390935,207.37,207.17,132.53168522]
[1738468643648,0.03065612,207.27,207.17,132.53168522]
[1738468645044,0.03065612,207.27,207.17,139.23328522]
[1738468645247,0.03065612,207.27,207.17,132.53168522]
[1738468645443,16.0390935,207.25,207.17,132.53168522]
[1738468645649,0.03065612,207.27,207.16,3.1173]
[1738468645849,0.03065612,207.27,207.11,6.7016]
[1738468646054,26.16653123,207.28,207.11,6.7016]
[1738468646254,0.03370725,207.21,207.11,6.7016]
[1738468646851,26.16653123,207.32,207.13,26.16653123]
[1738468647052,26.16653123,207.32,207.14,3.0073]
[1738468647253,26.16653123,207.4,207.19,26.16653123]
[1738468647952,3.78,207.46,207.19,3.78]
[1738468648154,1.511e-05,207.32,207.31,4.8248]
[1738468648346,1.511e-05,207.32,207.27,0.03297283]
[1738468648651,26.16653123,207.37,207.19,3.78]
[1738468648951,26.16653123,207.41,207.22,26.16653123]
[1738468649352,3.8038,207.59,207.3,26.16653123]
[1738468649556,9.7878,207.59,207.3,26.16653123]
[1738468649759,26.16653123,207.54,207.38,26.16653123]
[1738468650054,26.16653123,207.62,207.46,26.16653123]
[1738468650263,26.16653123,207.62,207.4,26.16653123]
[1738468650959,4.8204,207.51,207.49,0.03125801]
[1738468651460,4.8209,207.48,207.36,30.99013123]
[1738468651654,0.03527032,207.52,207.48,0.03455238]
[1738468651958,3.78,207.61,207.32,3.78]
[1738468651959,26.16653123,207.57,207.4,26.16653123]
[1738468652162,26.16653123,207.57,207.36,26.16653123]
[1738468652361,0.03376427,207.52,207.48,0.03551252]
[1738468652753,26.16653123,207.61,207.44,26.16653123]
[1738468653163,0.03525378,207.52,207.48,0.03433155]
[1738468653360,26.16653123,207.57,207.45,6.2428]
[1738468653660,0.03324655,207.52,207.48,0.03231206]
[1738468654359,4.8206,207.5,207.48,0.03231206]
[1738468655858,0.03324655,207.52,207.48,0.03231206]
[1738468656959,26.16653123,207.65,207.48,0.03231206]
[1738468657155,4.8184,207.59,207.51,4.8201]
[1738468657458,26.16653123,207.61,207.48,3.1256]
[1738468658156,26.16653123,207.61,207.52,0.03656586]
[1738468658363,4.8196,207.54,207.52,0.03656586]
[1738468659961,4.8193,207.55,207.52,0.03656586]
[1738468660164,0.03552772,207.57,207.52,0.03656586]
[1738468660462,0.03552772,207.57,207.54,4.8194]
[1738468660662,0.03552772,207.57,207.52,0.03656586]
[1738468661065,0.03552772,207.57,207.55,4.8192]
[1738468661260,26.16653123,207.7,207.55,26.16653123]
[1738468661569,5.9605,207.78,207.64,4.817]
[1738468661770,5.9605,207.78,207.59,26.16653123]
[1738468661970,9.6203,207.95,207.63,26.16653123]
[1738468662173,9.6203,207.95,207.64,2.9521]
[1738468662174,3.876,207.84,207.64,2.9521]
[1738468662364,3.876,207.84,207.56,3.6163]
[1738468662570,26.16653123,207.72,207.57,2.9521]
[1738468663070,26.16653123,207.68,207.54,4.8194]
[1738468663272,26.16653123,207.68,207.53,2.8807]
[1738468663469,4.8187,207.58,207.53,2.8807]
[1738468663677,26.16653123,207.6,207.46,3.662]
[1738468663875,0.03467737,207.58,207.53,0.035451]
[1738468664077,4.8195,207.54,207.53,0.035451]
[1738468666181,26.19879425,207.56,207.4,6.5521]
[1738468666778,26.16653123,207.56,207.4,6.5521]
[1738468666969,4.8196,207.54,207.43,26.16653123]
[1738468667170,3.1241,207.59,207.47,4.821]
[1738468667471,0.03207804,207.51,207.46,0.03298661]
[1738468667868,0.03207804,207.51,207.4,32.71863123]
[1738468668070,4.8205,207.5,207.46,0.03214966]
[1738468668474,0.03207804,207.51,207.46,0.03214966]
[1738468668672,4.821,207.48,207.46,0.03214966]
[1738468668871,26.16653123,207.49,207.31,6.5558]
[1738468669071,4.8221,207.43,207.31,6.5558]
[1738468669275,2.9127,207.48,207.31,6.5558]
[1738468669472,6.9587,207.52,207.31,6.5558]
[1738468669473,3.8643,207.52,207.34,26.16653123]
[1738468669672,26.16653123,207.57,207.38,26.16653123]
[1738468669875,6.189,207.59,207.42,26.16653123]
[1738468670075,0.03177393,207.5,207.45,0.03160441]
[1738468670272,0.03177393,207.5,207.46,26.16653123]
[1738468670477,3.78,207.64,207.49,4.8206]
[1738468670679,6.189,207.68,207.5,26.16653123]
[1738468671579,0.03303447,207.61,207.57,0.03350736]
[1738468671777,4.8184,207.59,207.57,0.03350736]
[1738468677380,0.03303447,207.61,207.44,4.8216]
[1738468677583,4.8198,207.53,207.44,4.8216]
[1738468677781,4.8198,207.53,207.43,6.1598]
[1738468677782,26.16653123,207.62,207.43,6.1598]
[1738468677988,26.16653123,207.62,207.43,10.9818]
[1738468678186,4.8204,207.51,207.43,10.9818]
[1738468678387,26.16653123,207.62,207.43,6.1598]
[1738468678591,0.03491267,207.49,207.45,0.03400766]
[1738468678782,26.16653123,207.62,207.43,6.1598]
[1738468678983,0.03229205,207.49,207.45,0.03521972]
[1738468679185,26.16653123,207.58,207.41,3.9247]
[1738468679389,0.03496213,207.49,207.45,0.03130026]
[1738468679683,16.06535973,207.54,207.4,95.42]
[1738468679986,0.03465978,207.49,207.45,3.397e-05]
[1738468680183,4.8213,207.46,207.45,3.397e-05]
[1738468680487,16.06535973,207.46,207.35,133.67024149]
[1738468680683,16.06535973,207.46,207.35,3.0673]
[1738468680883,16.06535973,207.46,207.31,2.8956]
[1738468681184,16.06535973,207.42,207.31,2.8956]
[1738468681482,0.03037669,207.41,207.31,2.8956]
[1738468681688,0.03037669,207.41,207.34,0.03208603]
[1738468681888,0.03037669,207.41,207.34,4.85618603]
[1738468682283,0.03037669,207.41,207.34,0.03208603]
[1738468682484,29.00689878,207.56,207.37,26.11219878]
[1738468682684,2.8947,207.56,207.41,26.11219878]
[1738468682890,4.8201,207.52,207.45,4.8215]
[1738468683089,31.88079878,207.56,207.42,6.8844]
[1738468683292,31.88079878,207.56,207.42,9.8027]
[1738468683687,0.03293941,207.51,207.47,0.03527442]
[1738468683889,4.8207,207.49,207.47,0.03527442]
[1738468684094,0.03293941,207.51,207.47,0.03527442]
[1738468684493,0.03293941,207.51,207.47,4.85617442]
[1738468684695,6.8038,207.67,207.47,0.03527442]
[1738468684891,26.11219878,207.59,207.2,26.11219878]
[1738468685093,26.11219878,207.59,207.29,3.1781]
[1738468685094,26.11219878,207.47,207.29,3.1781]
[1738468685393,26.11219878,207.51,207.29,3.1781]
[1738468685589,4.8223,207.42,207.34,191.58588818]
[1738468685787,26.11219878,207.51,207.31,130.60294149]
[1738468686187,0.03274007,207.43,207.39,0.03204868]
[1738468686996,3.136,207.58,207.39,7.04004868]
[1738468687293,3.136,207.58,207.39,7.008]
[1738468688090,0.03298158,207.51,207.46,0.03152911]
[1738468688493,32.91599878,207.67,207.46,26.14372789]
[1738468688888,32.91599878,207.67,207.46,26.11219878]
[1738468689092,32.91599878,207.67,207.5,26.11219878]
[1738468689299,32.91599878,207.67,207.51,3.8299]
[1738468689693,32.91599878,207.67,207.57,0.03464426]
[1738468689694,0.03541822,207.61,207.57,0.03464426]
[1738468691395,4.8184,207.59,207.57,0.03464426]
[1738468691590,26.11219878,207.59,207.42,130.60294149]
[1738468691899,26.11219878,207.63,207.44,26.11219878]
[1738468692198,32.91599878,207.67,207.48,26.11219878]
[1738468692501,4.8184,207.59,207.48,26.11219878]
[1738468692701,4.8184,207.59,207.55,0.0358245]
[1738468693001,26.11219878,207.63,207.55,0.0358245]
[1738468693197,0.03672485,207.59,207.55,0.0358245]
[1738468693392,4.819,207.57,207.55,2.45e-05]
[1738468695404,26.11219878,207.56,207.55,2.45e-05]
[1738468695702,26.11219878,207.56,207.43,3.833]
[1738468695904,26.11219878,207.48,207.33,130.60294149]
[1738468696104,26.11219878,207.44,207.33,130.60294149]
[1738468696304,26.11219878,207.44,207.33,135.42724149]
[1738468696505,26.11219878,207.44,207.33,130.60294149]
[1738468696705,26.11219878,207.44,207.33,135.42724149]
[1738468696902,0.03437035,207.41,207.36,0.03259144]
[1738468697104,0.03437035,207.41,207.32,6.2405]
[1738468697304,0.03437035,207.41,207.36,0.03093474]
[1738468697807,4.8228,207.4,207.36,0.03093474]
[1738468698008,0.03437035,207.41,207.36,0.03093474]
[1738468698200,4.8232,207.38,207.36,0.03093474]
[1738468699403,0.03437035,207.41,207.36,0.03093474]
[1738468700204,26.11219878,207.54,207.37,26.11219878]
[1738468700403,26.11219878,207.54,207.41,4.8224]
[1738468700606,26.11219878,207.54,207.34,3.054]
[1738468701306,26.14794872,207.46,207.42,0.0316511]
[1738468701509,26.11219878,207.46,207.34,3.054]
[1738468701706,4.8236,207.37,207.34,3.054]
[1738468702109,26.11219878,207.42,207.31,3.6284]
[1738468702510,3.1551,207.44,207.31,3.6284]
[1738468702705,0.03094679,207.39,207.34,0.03526437]
[1738468702911,32.25449878,207.54,207.34,26.11219878]
[1738468703113,6.1423,207.54,207.38,26.11219878]
[1738468703406,32.25449878,207.54,207.38,30.93519878]
[1738468703708,26.11219878,207.5,207.32,3.78]
[1738468704209,4.8225,207.41,207.39,0.03337395]
[1738468704908,4.8225,207.41,207.39,7.395e-05]
[1738468705206,29.00599878,207.42,207.25,4.8261]
[1738468705603,29.00599878,207.42,207.21,10.0548]
[1738468705809,29.00599878,207.42,207.27,4.8258]
[1738468706308,4.8239,207.35,207.33,0.03225653]
[1738468708605,0.03329892,207.37,207.21,10.0548]
[1738468708801,26.11219878,207.38,207.21,10.0548]
[1738468709004,26.11219878,207.34,207.21,10.0548]
[1738468709201,4.8243,207.34,207.21,10.0548]
[1738468709401,3.8913,207.41,207.24,26.11219878]
[1738468709914,0.03317834,207.35,207.3,0.03421118]
[1738468711110,4.8246,207.32,207.3,0.03421118]
[1738468711307,0.03317834,207.35,207.3,0.03421118]
[1738468712312,4.8247,207.32,207.3,0.03421118]
[1738468712611,0.03317834,207.35,207.3,0.03421118]
[1738468713503,4.85717834,207.35,207.3,0.03421118]
[1738468714305,0.03317834,207.35,207.3,0.03421118]
[1738468714512,4.8242,207.34,207.3,0.03421118]
[1738468714913,0.03317834,207.35,207.3,4.85921118]
[1738468715212,0.03317834,207.35,207.3,0.03421118]
[1738468716105,0.03317834,207.35,207.3,4.85911118]
[1738468716306,4.85707834,207.35,207.3,0.03421118]
[1738468716514,0.03317834,207.35,207.3,4.85931118]
[1738468716717,0.03317834,207.35,207.3,0.03421118]
[1738468717514,4.8248,207.31,207.3,0.03421118]
[1738468717714,4.8248,207.31,207.3,1.118e-05]
[1738468720619,0.03317834,207.35,207.3,1.118e-05]
[1738468721020,4.8248,207.31,207.3,1.118e-05]
[1738468721418,5.66764058,207.31,207.3,1.118e-05]
[1738468723014,4.8286,207.15,207.14,3.0929]
[1738468723219,26.11219878,207.28,207.14,3.0929]
[1738468723831,26.11219878,207.28,207.11,6.9095]
[1738468724028,26.11219878,207.28,207.12,2.9183]
[1738468724332,0.03621799,207.22,207.12,2.9183]
[1738468724924,1.20621799,207.22,207.12,2.9183]
[1738468725330,4.8281,207.17,207.12,2.9183]
[1738468725731,0.03291816,207.17,207.12,2.9183]
[1738468728434,4.8288,207.14,207.12,2.9183]
[1738468731930,0.03291816,207.17,207.11,6.9095]
[1738468732232,0.03291816,207.17,207.08,95.5]
[1738468733229,4.8295,207.12,207.08,95.5]
[1738468733535,6.2858,207.21,207.08,95.5]
[1738468733735,4.83,207.1,207.08,95.5]
[1738468734035,0.03656037,207.11,207.08,95.5]
[1738468734232,4.83,207.09,207.08,95.5]
[1738468735230,0.03041191,207.12,207.08,95.5]
[1738468735438,0.03041191,207.12,207.08,111.61022812]
[1738468735829,4.8299,207.1,207.08,111.61022812]
[1738468736238,0.03041191,207.12,207.08,95.5]
[1738468736730,4.83,207.09,207.08,95.5]
[1738468737336,4.8311,207.04,207.01,10.2559]
[1738468737536,16.11022812,207.14,206.99,16.11022812]
[1738468737731,0.03148277,207.05,206.99,16.11022812]
[1738468738035,0.03148277,207.05,206.91,16.11022812]
[1738468738229,7.0001,207.09,206.91,16.11022812]
[1738468738636,0.03149069,207.0,206.91,16.11022812]
[1738468740731,4.833,206.97,206.91,16.11022812]
[1738468740933,0.03149069,207.0,206.87,16.11022812]
[1738468741239,16.11022812,207.06,206.87,16.11022812]
[1738468741240,4.833,206.97,206.87,16.11022812]
[1738468741539,0.03688018,206.96,206.87,16.11022812]
[1738468741837,4.8336,206.94,206.87,16.11022812]
[1738468742038,0.03688018,206.96,206.87,16.11022812]
[1738468742431,4.8333,206.95,206.87,16.11022812]
[1738468742635,0.03688018,206.96,206.87,16.11022812]
[1738468742934,4.8336,206.94,206.87,16.11022812]
[1738468743140,0.03688018,206.96,206.87,16.11022812]
[1738468743339,0.03688018,206.96,206.88,7.2662]
[1738468743542,0.03688018,206.96,206.88,10.405]
[1738468744431,0.03688018,206.96,206.92,4.8338]
[1738468744636,0.03688018,206.96,206.91,16.11022812]
[1738468745336,7.0001,207.09,206.95,16.11022812]
[1738468745733,4.8306,207.07,206.99,4.8322]
[1738468745937,7.0001,207.09,206.91,16.11022812]
[1738468746338,16.11022812,207.06,206.88,10.405]
[1738468746541,0.03143303,207.02,206.98,0.03438084]
[1738468746735,0.03143303,207.02,206.98,8.084e-05]
[1738468747839,4.8323,206.99,206.98,8.084e-05]
[1738468751944,0.03143303,207.02,206.98,8.084e-05]
[1738468752741,0.03143303,207.02,206.99,4.8322]
[1738468752941,16.11022812,207.17,206.99,16.11022812]
[1738468753146,4.8291,207.13,207.03,16.11022812]
[1738468753344,7.0608,207.18,207.03,16.11022812]
[1738468753549,16.11022812,207.16,206.99,16.11022812]
[1738468753749,4.8294,207.12,206.99,16.11022812]
[1738468753943,7.0608,207.18,207.01,4.8317]
[1738468754142,4.8292,207.13,206.99,16.11022812]
[1738468754342,0.03582299,207.11,207.06,0.03632189]
[1738468757442,4.8304,207.07,207.06,0.03632189]
[1738468760244,4.83,207.09,207.06,0.03632189]
[1738468760543,0.03582299,207.11,207.06,0.03632189]
[1738468761649,4.8302,207.08,207.06,0.03632189]
[1738468761845,0.03582299,207.11,207.06,0.03632189]
[1738468762242,4.86552299,207.11,207.06,0.03632189]
[1738468762447,16.11022812,207.29,207.07,16.11022812]
[1738468762646,2.9871,207.28,207.11,16.11022812]
[1738468762849,16.11022812,207.37,207.19,16.11022812]
[1738468763051,3.89012662,207.36,207.19,16.11022812]
[1738468763251,4.826,207.26,207.19,16.11022812]
[1738468763754,0.03602308,207.25,207.2,0.03300985]
[1738468764950,16.11022812,207.21,207.09,130.60294149]
[1738468765149,4.8296,207.11,207.09,130.60294149]
[1738468765956,0.03218206,207.12,207.01,7.2373]
[1738468766158,0.03218206,207.12,207.08,0.03207273]
[1738468766751,4.8298,207.1,207.08,0.03207273]
[1738468766948,4.8298,207.1,207.08,7.273e-05]
[1738468767849,6.8191,207.11,206.95,3.1552]
[1738468768053,4.8324,206.99,206.9,16.11022812]
[1738468768253,19.89022812,207.08,206.9,16.11022812]
[1738468768658,4.8317,207.02,206.86,20.94542812]
[1738468768858,19.89022812,207.08,206.86,16.11022812]
[1738468769158,0.03713832,206.96,206.86,16.11022812]
[1738468769352,4.8336,206.94,206.86,16.11022812]
[1738468769562,6.67539326,206.93,206.86,16.11022812]
[1738468770059,0.03338075,206.92,206.86,16.11022812]
[1738468771061,4.86758075,206.92,206.86,16.11022812]
[1738468771656,4.8342,206.91,206.86,16.11022812]
[1738468771859,0.03338075,206.92,206.86,16.11022812]
[1738468772262,0.03338075,206.92,206.82,95.64]
[1738468773359,0.03338075,206.92,206.83,10.7084]
[1738468773556,0.03338075,206.92,206.87,16.11022812]
[1738468773759,23.80223643,206.98,206.92,4.8338]
[1738468774062,23.80223643,206.98,206.91,16.11022812]
[1738468774462,4.8329,206.97,206.91,16.11022812]
[1738468774763,23.80223643,206.98,206.91,16.11022812]
[1738468774964,0.03056256,206.96,206.92,0.036317]
[1738468775560,0.03056256,206.96,206.81,4.8364]
[1738468775561,4.8348,206.89,206.81,4.8364]
[1738468775765,16.14079068,206.96,206.8,16.11022812]
[1738468775964,23.80223643,206.98,206.8,16.11022812]
[1738468776462,16.11022812,207.0,206.8,16.11022812]
[1738468776662,0.03414967,206.91,206.8,16.11022812]
[1738468777466,4.86844967,206.91,206.84,4.8356]